bitfinex/quotes_SOLUSD_20220109
["timestamp","ask_amount","ask_price","bid_price","bid_amount"]
[1641753181932,0.25,144.66,144.55,14.11716006]
[1641753182332,0.25,144.66,144.56,3.91716006]
[1641753182532,26.53723224,144.66,144.56,3.91716006]
[1641753182931,1.728,144.65,144.56,3.91716006]
[1641753183335,0.25,144.64,144.56,3.91716006]
[1641753183532,30.98958096,144.62,144.56,3.91716006]
[1641753183734,30.98958096,144.62,144.53,34.5776]
[1641753183933,30.98958096,144.62,144.56,10.3738]
[1641753184334,0.25,144.61,144.56,10.3738]
[1641753185436,30.98958096,144.62,144.56,10.3738]
[1641753186234,1.729,144.66,144.56,10.3738]
[1641753186435,1.728,144.67,144.57,10.6234]
[1641753186836,1.728,144.67,144.57,10.3734]
[1641753187235,23.94531192,144.66,144.57,10.3734]
[1641753187436,1.728,144.65,144.57,10.3734]
[1641753187636,1.978,144.65,144.57,10.3734]
[1641753189940,1.978,144.65,144.55,9.95]
[1641753190940,12.3529,144.65,144.55,9.95]
[1641753191140,3.0,144.64,144.55,9.95]
[1641753191443,1.728,144.63,144.55,9.95]
[1641753191640,1.729,144.65,144.55,9.95]
[1641753191841,24.5886,144.67,144.55,11.73082586]
[1641753192240,3.0,144.66,144.55,9.95]
[1641753192441,10.3765,144.63,144.56,3.91677688]
[1641753192641,31.80705335,144.61,144.56,3.91677688]
[1641753193045,0.25,144.6,144.56,3.91677688]
[1641753193243,0.25,144.6,144.55,9.95]
[1641753193642,31.80705335,144.61,144.55,9.95]
[1641753196548,31.80705335,144.61,144.56,0.25]
[1641753196748,31.80705335,144.61,144.53,9.95]
[1641753196951,31.80705335,144.61,144.56,0.25]
[1641753197950,31.80705335,144.61,144.55,0.25]
[1641753198449,31.80705335,144.61,144.55,1.78082586]
[1641753198851,31.80705335,144.61,144.55,12.15592586]
[1641753199652,0.25,144.6,144.55,1.78082586]
[1641753199855,1.979,144.6,144.53,9.95]
[1641753200054,0.25,144.6,144.51,11.73082586]
[1641753200678,31.80705335,144.61,144.51,11.73082586]
[1641753200877,31.80705335,144.61,144.51,23.23750835]
[1641753201077,0.25,144.6,144.54,10.3757]
[1641753201481,31.80705335,144.61,144.54,10.3757]
[1641753202477,0.25,144.6,144.54,10.3757]
[1641753203077,0.25,144.6,144.54,12.15652586]
[1641753203979,0.25,144.6,144.55,3.91951298]
[1641753204181,0.25,144.6,144.55,6.91951298]
[1641753204580,1.729,144.59,144.55,6.91951298]
[1641753204781,0.25,144.6,144.52,10.3769]
[1641753205481,0.25,144.6,144.53,3.9200823]
[1641753205682,1.729,144.59,144.53,3.9200823]
[1641753205883,31.80705335,144.61,144.53,3.9200823]
[1641753206081,31.80705335,144.61,144.53,5.70090816]
[1641753206481,31.80705335,144.61,144.53,1.78082586]
[1641753206883,31.80705335,144.61,144.53,11.73082586]
[1641753207284,31.80705335,144.61,144.54,3.9200823]
[1641753207588,31.80705335,144.61,144.54,4.1700823]
[1641753207784,31.80705335,144.61,144.54,5.95090816]
[1641753207984,31.80705335,144.61,144.54,5.70090816]
[1641753208487,35.8828,144.63,144.55,0.25]
[1641753208888,0.25,144.62,144.54,1.78082586]
[1641753209287,0.25,144.62,144.54,12.15652586]
[1641753209486,27.73882076,144.62,144.54,12.15652586]
[1641753209887,27.48882076,144.62,144.54,12.15652586]
[1641753210288,1.729,144.66,144.55,9.95]
[1641753210487,25.952,144.67,144.55,23.35756879]
[1641753210689,1.728,144.67,144.56,36.35312586]
[1641753210891,24.5907,144.69,144.57,0.51]
[1641753211091,24.5907,144.69,144.57,28.44838864]
[1641753211291,27.98801571,144.68,144.58,1.78082586]
[1641753211491,27.98801571,144.68,144.59,0.51]
[1641753211689,27.98801571,144.68,144.59,0.25]
[1641753211889,27.98801571,144.68,144.61,10.3707]
[1641753212690,25.1287,144.71,144.62,0.25]
[1641753212891,78.2692,144.73,144.65,10.3678]
[1641753213091,1.728,144.75,144.63,11.73082586]
[1641753213491,1.728,144.75,144.64,1.78082586]
[1641753213693,26.52801412,144.74,144.64,1.78082586]
[1641753213890,1.727,144.73,144.64,1.78082586]
[1641753214491,1.727,144.73,144.65,10.368]
[1641753214691,26.52801412,144.74,144.65,10.368]
[1641753214891,1.727,144.73,144.65,12.14882586]
[1641753215391,0.25,144.72,144.65,12.14882586]
[1641753215793,0.25,144.72,144.66,10.3672]
[1641753215997,0.25,144.72,144.66,17.4732]
[1641753216199,26.52801412,144.74,144.67,1.78082586]
[1641753216397,26.52801412,144.74,144.68,0.25]
[1641753216597,121.3823,144.76,144.68,0.25]
[1641753216798,121.3823,144.76,144.68,2.03082586]
[1641753217096,121.3823,144.76,144.7,10.3643]
[1641753217296,121.3823,144.76,144.68,11.98082586]
[1641753217497,148.68861197,144.76,144.69,0.26]
[1641753217897,0.25,144.75,144.69,0.26]
[1641753218300,0.25,144.75,144.69,10.3645]
[1641753218903,0.25,144.75,144.69,12.14532586]
[1641753219935,0.25,144.75,144.69,1.78082586]
[1641753220434,1.727,144.74,144.69,1.78082586]
[1641753220635,0.25,144.75,144.69,1.78082586]
[1641753220936,121.3823,144.76,144.7,0.25]
[1641753221337,121.3823,144.76,144.7,2.03082586]
[1641753222437,48.711,144.81,144.7,2.03082586]
[1641753222638,48.711,144.81,144.71,3.0]
[1641753223037,48.711,144.81,144.72,0.25]
[1641753223237,31.76987181,144.81,144.72,0.57484024]
[1641753223438,31.76987181,144.81,144.72,0.90484024]
[1641753223638,31.76987181,144.81,144.72,15.6356661]
[1641753223845,31.76987181,144.81,144.72,47.0981661]
[1641753224039,31.76987181,144.81,144.73,3.0]
[1641753224438,31.76987181,144.81,144.74,0.51]
[1641753224638,73.6366,144.82,144.74,0.51]
[1641753224838,73.6366,144.82,144.75,0.07]
[1641753225040,47.0928,144.85,144.75,0.07]
[1641753225239,123.8002,144.85,144.75,0.07]
[1641753225839,26.08750994,144.84,144.77,10.359]
[1641753226238,0.25,144.83,144.77,10.359]
[1641753227141,123.8002,144.85,144.77,10.359]
[1641753227342,123.8002,144.85,144.77,12.13982586]
[1641753227541,123.8002,144.85,144.78,3.51]
[1641753227742,123.8002,144.85,144.81,10.3565]
[1641753227940,1.726,144.89,144.79,1.78082586]
[1641753227941,75.0,144.88,144.79,1.78082586]
[1641753228141,29.62241492,144.87,144.75,9.95]
[1641753228342,77.35301492,144.87,144.75,9.95]
[1641753228540,75.62701492,144.87,144.76,3.0]
[1641753228743,75.62701492,144.87,144.81,10.3563]
[1641753228945,75.62701492,144.87,144.81,16.2723]
[1641753229344,81.0824,144.89,144.81,16.2723]
[1641753229545,79.3564,144.89,144.82,3.0]
[1641753229743,79.3564,144.89,144.85,10.3533]
[1641753229942,93.3,144.91,144.85,18.6813]
[1641753230142,48.0212,144.92,144.85,18.6813]
[1641753230344,29.78389461,144.91,144.82,3.0]
[1641753230546,29.78389461,144.91,144.81,44.461]
[1641753230749,29.78389461,144.91,144.81,9.95]
[1641753230946,1.725,144.9,144.81,9.95]
[1641753231744,0.25,144.89,144.81,9.95]
[1641753232544,76.2888,144.9,144.81,9.95]
[1641753232746,74.5638,144.9,144.81,20.3059]
[1641753234048,74.5638,144.9,144.82,3.26]
[1641753234247,74.5638,144.9,144.84,10.3539]
[1641753234948,74.5638,144.9,144.81,9.95]
[1641753235446,23.45912529,144.88,144.81,9.95]
[1641753236253,0.25,144.87,144.81,9.95]
[1641753236450,23.45912529,144.88,144.81,9.95]
[1641753237650,23.45912529,144.88,144.81,20.3062]
[1641753238750,74.5638,144.9,144.82,3.51]
[1641753239352,74.5638,144.9,144.83,1.78082586]
[1641753239549,74.5638,144.9,144.82,3.26]
[1641753239749,74.5638,144.9,144.83,0.25]
[1641753239750,29.05052658,144.89,144.83,0.25]
[1641753240351,29.05052658,144.89,144.81,9.95]
[1641753240551,36.82952658,144.89,144.81,9.95]
[1641753240953,38.55452658,144.89,144.81,9.95]
[1641753241754,30.77552658,144.89,144.81,9.95]
[1641753241952,41.13332658,144.89,144.81,9.95]
[1641753242253,41.13332658,144.89,144.78,11.73082586]
[1641753242454,0.25,144.88,144.78,9.95]
[1641753242653,25.97279939,144.86,144.78,9.95]
[1641753243255,27.69879939,144.86,144.78,9.95]
[1641753244060,3.0,144.85,144.78,9.95]
[1641753244865,0.25,144.84,144.78,9.95]
[1641753245060,1.976,144.84,144.73,9.95]
[1641753245361,32.23595364,144.83,144.7,9.95]
[1641753245580,35.23595364,144.83,144.73,1.78082586]
[1641753245782,1.726,144.82,144.7,11.73082586]
[1641753245979,0.25,144.81,144.7,11.73082586]
[1641753246882,0.25,144.81,144.7,33.80209503]
[1641753247080,31.90481916,144.79,144.7,45.3015553]
[1641753247583,1.727,144.81,144.71,5.29082586]
[1641753247782,3.0,144.83,144.72,9.95]
[1641753247982,3.0,144.83,144.73,0.51]
[1641753248183,1.726,144.87,144.73,15.21706917]
[1641753248384,28.34196566,144.83,144.73,16.99789503]
[1641753248586,28.34196566,144.83,144.74,1.78082586]
[1641753248784,28.34196566,144.83,144.74,12.14192586]
[1641753248984,28.34196566,144.83,144.75,0.25]
[1641753249786,1.726,144.85,144.76,11.73082586]
[1641753249986,123.7724,144.89,144.77,3.25]
[1641753250186,123.7724,144.89,144.77,2.03082586]
[1641753250387,123.7724,144.89,144.78,23.76789503]
[1641753250687,123.7724,144.89,144.78,24.98706917]
[1641753250988,30.09712837,144.88,144.81,10.3564]
[1641753251387,30.09712837,144.88,144.82,0.25]
[1641753252686,30.09712837,144.88,144.82,10.6056]
[1641753253988,30.09712837,144.88,144.81,1.78082586]
[1641753254191,0.25,144.87,144.8,10.3567]
[1641753257291,30.09712837,144.88,144.8,12.13752586]
[1641753257491,123.7724,144.89,144.8,12.13752586]
[1641753257492,123.7724,144.89,144.81,0.25]
[1641753257692,76.427,144.89,144.81,0.25]
[1641753257895,76.427,144.89,144.81,5.29082586]
[1641753258093,229.7939,144.92,144.81,5.29082586]
[1641753258292,0.25,144.91,144.81,5.29082586]
[1641753258493,26.4152646,144.91,144.81,3.51]
[1641753258694,26.4152646,144.91,144.83,10.3545]
[1641753258993,28.1402646,144.91,144.81,0.25]
[1641753259193,26.4152646,144.91,144.81,3.51]
[1641753259394,26.4152646,144.91,144.82,0.32]
[1641753260196,26.4152646,144.91,144.85,10.3537]
[1641753260496,26.4152646,144.91,144.86,0.25]
[1641753260697,26.4152646,144.91,144.83,0.07]
[1641753260895,26.4152646,144.91,144.83,0.33]
[1641753261099,26.4152646,144.91,144.83,2.11082586]
[1641753261296,26.4152646,144.91,144.84,13.2]
[1641753261495,26.4152646,144.91,144.85,0.07]
[1641753261896,26.4152646,144.91,144.86,10.3528]
[1641753262101,26.4152646,144.91,144.84,9.95]
[1641753263102,3.0,144.9,144.84,20.3038]
[1641753263298,3.25,144.9,144.84,20.3038]
[1641753263699,3.0,144.9,144.84,20.3038]
[1641753265600,26.4152646,144.91,144.85,1.78082586]
[1641753265799,26.4152646,144.91,144.87,10.3518]
[1641753266200,26.4152646,144.91,144.88,0.25]
[1641753266400,6.06429999,144.9,144.88,0.25]
[1641753266902,6.06429999,144.9,144.88,10.6012]
[1641753267104,100.5385,144.95,144.88,10.6012]
[1641753267504,25.80978578,144.94,144.88,10.6012]
[1641753269002,25.80978578,144.94,144.89,10.4202]
[1641753269501,25.80978578,144.94,144.9,0.25]
[1641753270103,76.7764,144.95,144.9,0.25]
[1641753270503,76.7764,144.95,144.87,0.51]
[1641753270905,76.7764,144.95,144.9,10.3495]
[1641753271104,99.80608645,144.95,144.9,10.3495]
[1641753272309,99.80608645,144.95,144.88,10.3509]
[1641753275409,0.25,144.94,144.88,10.3509]
[1641753275609,99.80608645,144.95,144.88,10.3509]
[1641753276209,99.80608645,144.95,144.86,20.3023]
[1641753276410,99.80608645,144.95,144.87,0.25]
[1641753277712,99.80608645,144.95,144.85,3.25]
[1641753278112,99.80608645,144.95,144.88,10.3515]
[1641753278511,23.02968645,144.95,144.86,0.31290855]
[1641753278713,23.02968645,144.95,144.86,0.57290855]
[1641753279114,23.02968645,144.95,144.84,9.95]
[1641753279346,4.725,144.94,144.81,1.77725643]
[1641753279548,14.675,144.94,144.81,1.77725643]
[1641753279945,18.40619081,144.94,144.79,9.95]
[1641753280151,99.4159,144.93,144.79,9.95]
[1641753280349,37.9090916,144.92,144.79,9.95]
[1641753280551,10.3592,144.87,144.79,9.95]
[1641753280947,23.52107824,144.85,144.78,1.77725643]
[1641753281447,23.52107824,144.85,144.78,3.55808229]
[1641753281847,23.52107824,144.85,144.76,1.77725643]
[1641753282651,23.52107824,144.85,144.75,13.50808229]
[1641753282849,23.52107824,144.85,144.78,10.3587]
[1641753283250,23.52107824,144.85,144.75,48.03518229]
[1641753283453,23.52107824,144.85,144.75,46.25792586]
[1641753283657,23.52107824,144.85,144.75,11.73082586]
[1641753283855,0.25,144.84,144.76,0.25]
[1641753284053,1.976,144.84,144.76,0.25]
[1641753284253,1.726,144.84,144.76,0.25]
[1641753284756,81.684,144.84,144.75,9.95]
[1641753285155,81.684,144.84,144.76,0.25]
[1641753285352,79.958,144.84,144.76,0.25]
[1641753285557,79.958,144.84,144.77,1.78082586]
[1641753285953,79.958,144.84,144.78,0.25]
[1641753286355,79.958,144.84,144.76,10.3595]
[1641753286655,0.25,144.83,144.76,10.3595]
[1641753287660,0.25,144.83,144.74,10.3609]
[1641753288165,0.25,144.83,144.72,11.72725643]
[1641753288358,32.57519636,144.82,144.72,11.72725643]
[1641753288557,32.57519636,144.82,144.72,9.95]
[1641753288756,0.25,144.81,144.72,9.95]
[1641753288958,0.25,144.81,144.73,0.25]
[1641753289157,34.2172,144.81,144.73,0.25]
[1641753289360,34.2172,144.81,144.71,0.25]
[1641753289558,34.2172,144.81,144.7,11.72725643]
[1641753289758,34.2172,144.81,144.7,1.77725643]
[1641753289759,25.31940112,144.79,144.7,1.77725643]
[1641753289959,1.727,144.78,144.7,1.77725643]
[1641753290160,25.31940112,144.79,144.7,1.77725643]
[1641753290360,25.31940112,144.79,144.68,11.72725643]
[1641753290560,78.1811,144.78,144.69,10.3651]
[1641753290759,78.1811,144.78,144.69,22.07216917]
[1641753290959,78.1811,144.78,144.7,0.25]
[1641753291360,78.1811,144.78,144.71,1.78082586]
[1641753291559,78.1811,144.78,144.71,12.14442586]
[1641753291760,78.1811,144.78,144.72,0.25]
[1641753291962,23.8538,144.81,144.72,2.10082586]
[1641753292162,23.6038,144.81,144.72,2.03082586]
[1641753292463,23.6038,144.81,144.73,0.07]
[1641753292862,23.6038,144.81,144.73,1.85082586]
[1641753293163,49.48301066,144.81,144.74,0.25]
[1641753294765,25.87921066,144.81,144.74,0.25]
[1641753294962,25.87921066,144.81,144.75,0.07]
[1641753296067,98.0227,144.8,144.75,0.07]
[1641753296264,101.0227,144.8,144.7,0.07]
[1641753296464,0.25,144.79,144.7,0.07]
[1641753296771,101.0227,144.8,144.7,0.07]
[1641753296964,26.64841193,144.78,144.7,0.07]
[1641753297988,37.01391193,144.78,144.7,0.07]
[1641753298988,10.367,144.76,144.7,0.07]
[1641753299189,25.02405922,144.75,144.7,0.07]
[1641753299489,28.02405922,144.75,144.7,0.07]
[1641753300395,25.02405922,144.75,144.7,0.07]
[1641753300593,25.02405922,144.75,144.7,1.85082586]
[1641753300995,25.02405922,144.75,144.71,0.25]
[1641753301393,25.02405922,144.75,144.71,1.78082586]
[1641753301594,25.02405922,144.75,144.7,0.25]
[1641753302593,25.02405922,144.75,144.68,13.28028613]
[1641753302796,25.02405922,144.75,144.67,10.366]
[1641753303794,25.02405922,144.75,144.68,0.25]
[1641753304092,25.02405922,144.75,144.68,10.6157]
[1641753304292,25.02405922,144.75,144.69,0.07]
[1641753305194,24.8438,144.79,144.7,1.78082586]
[1641753305394,72.7041,144.8,144.71,0.25]
[1641753305606,72.7041,144.8,144.72,0.07]
[1641753305801,11.677,144.84,144.72,0.07]
[1641753306003,3.0,144.83,144.72,0.07]
[1641753306202,26.19374027,144.82,144.72,0.07]
[1641753306805,26.19374027,144.82,144.74,10.3609]
[1641753308107,26.19374027,144.82,144.75,0.25]
[1641753308309,36.55674027,144.82,144.71,2.03082586]
[1641753308506,24.7238,144.81,144.72,3.0]
[1641753308806,27.7238,144.81,144.72,3.0]
[1641753309010,27.7238,144.81,144.7,9.95]
[1641753309238,25.9978,144.81,144.71,0.25]
[1641753309409,25.9978,144.81,144.71,13.6134]
[1641753309609,22.9978,144.81,144.71,13.6134]
[1641753310412,0.25,144.8,144.71,10.3634]
[1641753310614,24.7238,144.81,144.71,10.3634]
[1641753310812,22.9978,144.81,144.71,10.3634]
[1641753311511,22.9978,144.81,144.72,0.25]
[1641753311712,22.9978,144.81,144.73,10.3619]
[1641753312611,22.9978,144.81,144.69,36.31685643]
[1641753312813,0.25,144.8,144.7,12.14115643]
[1641753313014,0.25,144.8,144.7,1.77725643]
[1641753313718,10.2,144.8,144.68,1.77725643]
[1641753313917,22.82295599,144.79,144.69,1.727]
[1641753314118,23.409,144.78,144.69,1.977]
[1641753314316,23.409,144.78,144.69,2.047]
[1641753314519,98.0175,144.78,144.69,2.047]
[1641753315118,98.0175,144.78,144.69,10.6851]
[1641753315822,98.0175,144.78,144.69,12.46235643]
[1641753316018,98.0175,144.78,144.69,12.39235643]
[1641753316218,74.6085,144.78,144.7,0.07]
[1641753316419,74.6085,144.78,144.7,10.4342]
[1641753316620,22.82295599,144.79,144.71,0.25]
[1641753317446,47.54745599,144.79,144.71,0.25]
[1641753318047,47.54745599,144.79,144.7,12.21145643]
[1641753318048,47.54745599,144.79,144.7,12.14145643]
[1641753318249,0.25,144.78,144.7,1.77725643]
[1641753319050,0.25,144.78,144.68,3.50425643]
[1641753319452,3.0,144.78,144.69,0.32]
[1641753319853,3.0,144.78,144.69,10.6851]
[1641753321054,3.0,144.78,144.69,12.46235643]
[1641753321652,3.0,144.78,144.69,10.6851]
[1641753321851,3.0,144.78,144.7,1.78082586]
[1641753322052,47.54745599,144.79,144.7,10.3638]
[1641753322253,47.54745599,144.79,144.71,0.25]
[1641753322453,22.82295599,144.79,144.7,3.55808229]
[1641753322653,22.82295599,144.79,144.7,13.50808229]
[1641753322853,22.82295599,144.79,144.71,0.25]
[1641753323855,22.82295599,144.79,144.73,10.3622]
[1641753324255,24.4301,144.8,144.73,10.3622]
[1641753324656,24.4301,144.8,144.73,18.5822]
[1641753324859,79.9927,144.81,144.74,0.25]
[1641753325060,79.9927,144.81,144.74,10.6115]
[1641753325859,28.77834939,144.8,144.74,10.6115]
[1641753326058,28.77834939,144.8,144.73,0.07]
[1641753327360,79.9927,144.81,144.73,0.32]
[1641753327761,79.9927,144.81,144.73,10.6822]
[1641753328460,110.40193977,144.81,144.73,10.6822]
[1641753329064,110.40193977,144.81,144.73,10.4322]
[1641753330060,110.40193977,144.81,144.73,12.21302586]
[1641753330464,110.40193977,144.81,144.74,0.25]
[1641753331965,110.40193977,144.81,144.73,12.14302586]
[1641753332264,110.40193977,144.81,144.73,10.3622]
[1641753334368,110.40193977,144.81,144.74,0.25]
[1641753335564,110.40193977,144.81,144.73,2.02725643]
[1641753335767,110.40193977,144.81,144.73,1.77725643]
[1641753335965,110.40193977,144.81,144.74,0.25]
[1641753336365,110.40193977,144.81,144.73,0.07]
[1641753336567,110.40193977,144.81,144.73,10.3622]
[1641753337773,110.40193977,144.81,144.74,0.25]
[1641753338170,110.40193977,144.81,144.74,3.25]
[1641753338373,0.25,144.8,144.74,3.0]
[1641753338570,110.40193977,144.81,144.74,3.0]
[1641753338974,110.40193977,144.81,144.73,3.0]
[1641753339172,24.0954,144.8,144.73,3.0]
[1641753339372,24.0954,144.8,144.71,12.14035643]
[1641753339575,24.0954,144.8,144.72,0.25]
[1641753339773,110.40193977,144.81,144.72,0.25]
[1641753339774,30.40923977,144.81,144.72,0.25]
[1641753340072,30.40923977,144.81,144.72,10.8728]
[1641753340274,30.40923977,144.81,144.72,12.65362586]
[1641753340476,35.09466495,144.84,144.72,12.65362586]
[1641753340773,33.1443,144.84,144.72,37.52758229]
[1641753340974,22.7826,144.84,144.72,47.47758229]
[1641753341173,22.7826,144.84,144.76,10.3596]
[1641753341375,22.7826,144.84,144.77,0.25]
[1641753341575,50.56543375,144.84,144.77,0.25]
[1641753341975,50.56543375,144.84,144.74,0.51]
[1641753342178,50.56543375,144.84,144.74,10.46]
[1641753342375,27.78283375,144.84,144.74,10.46]
[1641753342576,27.78283375,144.84,144.75,5.07745532]
[1641753342777,27.78283375,144.84,144.75,10.40945532]
[1641753342997,27.78283375,144.84,144.76,2.03082586]
[1641753343598,27.78283375,144.84,144.77,0.07]
[1641753343999,34.5848,144.87,144.77,0.07]
[1641753344400,24.2254,144.87,144.77,0.07]
[1641753344602,1.726,144.86,144.77,0.07]
[1641753344802,1.976,144.86,144.77,0.07]
[1641753345004,30.0489799,144.85,144.77,0.07]
[1641753345299,23.9328,144.84,144.77,0.07]
[1641753345499,24.1828,144.84,144.77,0.07]
[1641753345902,97.9755,144.84,144.77,0.07]
[1641753348599,97.9755,144.84,144.77,3.07]
[1641753349000,97.9755,144.84,144.77,0.07]
[1641753349601,97.9755,144.84,144.77,3.07]
[1641753349802,97.9755,144.84,144.77,0.07]
[1641753355012,97.9755,144.84,144.77,10.4294]
[1641753355511,73.7927,144.84,144.78,0.25]
[1641753355711,1.95036495,144.86,144.79,0.07]
[1641753355911,1.45036495,144.86,144.79,10.13382586]
[1641753356114,1.45036495,144.86,144.81,0.31265289]
[1641753356313,3.8698359,144.89,144.83,10.3521]
[1641753356515,23.61191753,144.92,144.84,3.51]
[1641753356913,23.61191753,144.92,144.85,9.95]
[1641753357114,23.61191753,144.92,144.86,3.0]
[1641753357313,23.61191753,144.92,144.89,10.3501]
[1641753358815,23.61191753,144.92,144.9,0.25]
[1641753359015,79.53252902,144.98,144.9,10.5997]
[1641753359616,79.53252902,144.98,144.9,10.3497]
[1641753359818,79.53252902,144.98,144.9,18.5457]
[1641753360018,104.40261939,144.98,144.91,0.25]
[1641753360220,104.40261939,144.98,144.94,10.346]
[1641753360421,0.07962902,144.98,144.94,17.348]
[1641753361021,1.80362902,144.98,144.91,3.0]
[1641753361219,1.80362902,144.98,144.89,3.0]
[1641753361220,0.07962902,144.98,144.89,3.0]
[1641753361822,0.07962902,144.98,144.92,10.348]
[1641753362222,0.32962902,144.98,144.92,10.348]
[1641753363121,2.05362902,144.98,144.9,10.3495]
[1641753364122,1.80362902,144.98,144.9,10.3495]
[1641753364522,0.07962902,144.98,144.9,10.3495]
[1641753365122,0.07962902,144.98,144.91,0.25]
[1641753365324,0.07962902,144.98,144.91,10.5988]
[1641753366034,0.07962902,144.98,144.91,10.3488]
[1641753366231,29.0006503,144.99,144.88,9.95]
[1641753366433,4.724,144.98,144.87,10.3517]
[1641753366632,29.1483,144.98,144.86,9.95]
[1641753367233,29.1483,144.98,144.86,11.73082586]
[1641753367432,25.8983,144.98,144.86,22.08362586]
[1641753367633,25.8983,144.98,144.87,0.25]
[1641753367840,24.1743,144.98,144.87,0.25]
[1641753368039,24.1743,144.98,144.87,5.03082586]
[1641753368238,24.1743,144.98,144.87,5.29082586]
[1641753369250,24.1743,144.98,144.87,5.03082586]
[1641753369451,0.25,144.97,144.87,5.10082586]
[1641753369856,25.97968961,144.96,144.87,5.10082586]
[1641753370256,25.97968961,144.96,144.88,10.3512]
[1641753370456,25.97968961,144.96,144.89,0.25]
[1641753370665,25.97968961,144.96,144.89,3.25]
[1641753370859,25.97968961,144.96,144.89,0.25]
[1641753371660,25.97968961,144.96,144.89,10.6008]
[1641753371862,25.97968961,144.96,144.89,10.3508]
[1641753372065,73.9363,144.97,144.9,0.25]
[1641753372362,73.9363,144.97,144.88,0.25]
[1641753372562,73.9363,144.97,144.88,3.25]
[1641753372962,23.74472391,144.96,144.88,0.25]
[1641753373164,23.74472391,144.96,144.88,10.601]
[1641753373763,23.74472391,144.96,144.89,1.85082586]
[1641753373964,1.725,144.95,144.89,0.07]
[1641753374967,0.25,144.94,144.89,0.07]
[1641753375864,1.725,144.95,144.89,0.07]
[1641753376064,83.77972391,144.96,144.89,0.07]
[1641753376264,0.25,144.95,144.89,0.07]
[1641753376466,10.604,144.95,144.89,0.07]
[1641753376868,10.604,144.95,144.89,1.85082586]
[1641753377570,10.354,144.95,144.89,1.85082586]
[1641753377768,10.354,144.95,144.89,0.07]
[1641753379973,73.42612391,144.96,144.89,0.07]
[1641753380273,71.70112391,144.96,144.89,0.07]
[1641753381079,82.05442391,144.96,144.89,0.07]
[1641753381275,0.25,144.95,144.89,0.07]
[1641753381479,1.725,144.94,144.89,0.07]
[1641753381677,26.77842993,144.93,144.89,0.07]
[1641753385084,1.725,144.92,144.89,0.07]
[1641753385385,6.06429999,144.91,144.89,0.07]
[1641753385584,77.79493246,144.9,144.89,0.07]
[1641753385784,79.51993246,144.9,144.89,0.07]
[1641753387090,48.60593246,144.9,144.89,0.07]
[1641753387290,48.85593246,144.9,144.89,0.07]
[1641753387890,47.13093246,144.9,144.89,0.07]
[1641753388110,23.336,144.9,144.89,0.07]
[1641753389112,23.086,144.9,144.89,0.07]
[1641753390313,73.086,144.9,144.89,0.07]
[1641753390915,75.0,144.76,144.73,5.86309499]
[1641753391115,84.95,144.75,144.66,298.30760551]
[1641753391315,116.28538355,144.75,144.63,15.69157659]
[1641753391519,0.25,144.74,144.63,7.659e-05]
[1641753391713,0.25,144.74,144.55,10.3731]
[1641753391714,11.677,144.73,144.55,20.3231]
[1641753391916,11.677,144.73,144.58,23.65692894]
[1641753391917,124.35,144.71,144.58,23.65692894]
[1641753392117,124.35,144.71,144.5,73.317]
[1641753392118,124.35,144.69,144.5,73.317]
[1641753392318,10.3759,144.63,144.5,73.317]
[1641753392518,10.3759,144.63,144.46,70.7926]
[1641753392519,1.729,144.62,144.51,13.3759]
[1641753392715,11.929,144.62,144.51,3.0]
[1641753393117,11.929,144.62,144.52,29.48278729]